fUST/lending_fUST_20251212
["ID","MTS","AMOUNT","RATE_DAILY","PERIOD"]
[398288555,1765491078718,-1021.25,0.0001452,2]
[398288556,1765491078728,-1995.09,0.0001452,2]
[398288557,1765491078737,-500.0,0.0001452,2]
[398288558,1765491078747,-500.0,0.0001452,2]
[398288559,1765491078757,-1168.52,0.0001452,2]
[398288560,1765491078767,-4186.9,0.0001452,2]
[398288561,1765491078781,-1699.31,0.0001452,2]
[398288562,1765491078790,-2136.82,0.0001452,2]
[398288563,1765491078801,-500.0,0.0001452,2]
[398288564,1765491078812,-500.0,0.0001452,2]
[398288565,1765491078824,-91.2424913,0.0001452,2]
[398288566,1765491079209,-500.0,0.00010959,2]
[398288567,1765491079219,-303.7071709,0.00010959,2]
[398288568,1765491079817,-196.2928291,0.00010959,2]
[398288569,1765491079828,-500.0,0.00010959,2]
[398288570,1765491079839,-500.0,0.00010959,2]
[398288571,1765491079848,-500.0,0.00010959,2]
[398288572,1765491079920,-500.0,0.00010959,2]
[398288573,1765491079930,-500.0,0.00010959,2]
[398288574,1765491079940,-500.0,0.00010959,2]
[398288575,1765491079950,-1381.38,0.00012329,2]
[398288576,1765491079960,-718.25,0.00012876,2]
[398288577,1765491079970,-500.0,0.00012876,2]
[398288578,1765491079979,-862.89,0.00012876,2]
[398288579,1765491079989,-500.0,0.00012876,2]
[398288580,1765491079998,-643.85,0.0001315,2]
[398288581,1765491080008,-718.25,0.0001315,2]
[398288582,1765491080017,-500.0,0.0001315,2]
[398288583,1765491080027,-862.89,0.0001315,2]
[398288584,1765491080037,-500.0,0.0001315,2]
[398288585,1765491080046,-500.0,0.00013424,2]
[398288586,1765491080055,-643.85,0.00013424,2]
[398288587,1765491080065,-718.25,0.00013424,2]
[398288588,1765491080074,-500.0,0.00013424,2]
[398288589,1765491080084,-862.89,0.00013424,2]
[398288590,1765491080093,-543.6,0.00013424,2]
[398288591,1765491080103,-500.0,0.00013698,2]
[398288592,1765491080112,-643.85,0.00013698,2]
[398288593,1765491080121,-718.25,0.00013698,2]
[398288594,1765491080130,-862.89,0.00013698,2]
[398288595,1765491080140,-500.0,0.00013699,2]
[398288596,1765491080150,-500.0,0.00013972,2]
[398288597,1765491080159,-643.85,0.00013972,2]
[398288598,1765491080168,-718.25,0.00013972,2]
[398288599,1765491080178,-862.89,0.00013972,2]
[398288600,1765491080188,-167.5337579,0.00014246,2]
[398288601,1765491080197,-643.85,0.00014246,2]
[398288602,1765491080207,-718.25,0.00014246,2]
[398288603,1765491080216,-862.89,0.00014246,2]
[398288604,1765491080225,-731.1575087,0.0001452,2]
[398288605,1765491080235,-500.0,0.0001452,2]
[398288606,1765491080245,-1115.45,0.0001452,2]
[398288607,1765491080255,-3155.66,0.0001452,2]
[398288608,1765491080265,-500.0,0.0001452,2]
[398288609,1765491080274,-523.26,0.0001452,2]
[398288610,1765491080283,-595.27,0.0001452,2]
[398288611,1765491080292,-3166.48,0.0001452,2]
[398288612,1765491080302,-715.29,0.0001452,2]
[398288613,1765491080312,-944.25,0.0001452,2]
[398288614,1765491080327,-2155.6,0.0001452,2]
[398288615,1765491080338,-1775.18,0.0001452,2]
[398288616,1765491080349,-1785.91,0.0001452,2]
[398288617,1765491080359,-500.0,0.0001452,2]
[398288618,1765491080368,-23114.45,0.0001452,2]
[398288619,1765491080379,-500.0,0.0001452,2]
[398288620,1765491080388,-1411.75,0.0001452,2]
[398288621,1765491080398,-4516.98,0.0001452,2]
[398288622,1765491080407,-500.0,0.0001452,2]
[398288623,1765491080417,-913.98,0.0001452,2]
[398288624,1765491080427,-1529.69,0.0001452,2]
[398288625,1765491080436,-5237.79,0.0001452,2]
[398288626,1765491080445,-28377.33,0.0001452,2]
[398288627,1765491080454,-500.0,0.0001452,2]
[398288628,1765491080463,-500.0,0.0001452,2]
[398288629,1765491080472,-643.85,0.0001452,2]
[398288630,1765491080482,-718.25,0.0001452,2]
[398288631,1765491080490,-500.0,0.00014521,2]
[398288632,1765491080499,-4101.35385652,0.00014523,2]
[398288633,1765491080509,-260.0,0.00014537,2]
[398288634,1765491080519,-500.0,0.00014582,2]
[398288635,1765491080529,-988.60726244,0.00014618,2]
[398288636,1765491080540,-500.0,0.00014678,2]
[398288637,1765491080549,-500.0,0.00014682,2]
[398288638,1765491080559,-940.7879992,0.00014725,2]
[398288639,1765491080568,-824.42650342,0.00014727,2]
[398288640,1765491080577,-100000.0,0.00014736,2]
[398288641,1765491080587,-1000.0,0.00014764,2]
[398288642,1765491080597,-900.0,0.00014764,2]
[398288643,1765491080607,-900.0,0.00014768,2]
[398288644,1765491080615,-151.0,0.00014788,2]
[398288645,1765491080625,-200.0,0.00014793,2]
[398288646,1765491080634,-200.0,0.00014793,2]
[398288647,1765491080643,-500.0,0.00014794,2]
[398288648,1765491080652,-500.0,0.00014794,2]
[398288649,1765491080662,-500.0,0.00014794,2]
[398288650,1765491080671,-500.0,0.00014794,2]
[398288651,1765491080680,-500.0,0.00014794,2]
[398288652,1765491080690,-1015.14,0.00014794,2]
[398288653,1765491080699,-1176.87,0.00014794,2]
[398288654,1765491080708,-654.1,0.00014794,2]
[398288655,1765491080717,-520.76,0.00014794,2]
[398288656,1765491080727,-500.0,0.00014794,2]
[398288657,1765491080736,-500.0,0.00014794,2]
[398288658,1765491080745,-683.14,0.00014794,2]
[398288659,1765491080755,-213.97899332,0.00014794,2]
[398288660,1765491080764,-500.0,0.00014794,2]
[398288661,1765491080776,-500.0,0.00014794,2]
[398288662,1765491080786,-500.0,0.00014794,2]
[398288663,1765491080796,-500.0,0.00014794,2]
[398288664,1765491080805,-537.79,0.00014794,2]
[398288665,1765491080815,-500.0,0.00014794,2]
[398288666,1765491080824,-500.0,0.00014794,2]
[398288667,1765491080833,-500.0,0.00014794,2]
[398288668,1765491080842,-500.0,0.00014794,2]
[398288669,1765491080852,-500.0,0.00014794,2]
[398288670,1765491080862,-500.0,0.00014794,2]
[398288671,1765491080872,-500.0,0.00014794,2]
[398288672,1765491080881,-500.0,0.00014794,2]
[398288673,1765491080891,-500.0,0.00014794,2]
[398288674,1765491080900,-578.67,0.00014794,2]
[398288675,1765491080909,-500.0,0.00014794,2]
[398288676,1765491080918,-500.0,0.00014794,2]
[398288677,1765491080928,-587.07,0.00014794,2]
[398288678,1765491080937,-596.96,0.00014794,2]
[398288679,1765491080947,-500.0,0.00014794,2]
[398288680,1765491080956,-500.0,0.00014794,2]
[398288681,1765491080965,-500.0,0.00014794,2]
[398288682,1765491080975,-1052.1,0.00014794,2]
[398288683,1765491080984,-500.0,0.00014794,2]
[398288684,1765491080993,-1642.34,0.00014794,2]
[398288685,1765491081003,-500.0,0.00014794,2]
[398288686,1765491081012,-500.0,0.00014794,2]
[398288687,1765491081021,-546.01426623,0.00014794,2]
[398288688,1765491081030,-500.0,0.00014794,2]
[398288689,1765491081040,-500.0,0.00014794,2]
[398288690,1765491081049,-500.0,0.00014794,2]
[398288691,1765491081058,-500.0,0.00014794,2]
[398288692,1765491081067,-500.0,0.00014794,2]
[398288693,1765491081077,-500.0,0.00014794,2]
[398288694,1765491081086,-500.0,0.00014794,2]
[398288695,1765491081095,-500.0,0.00014794,2]
[398288696,1765491081105,-500.0,0.00014794,2]
[398288697,1765491081114,-500.0,0.00014794,2]
[398288698,1765491081123,-1285.23,0.00014794,2]
[398288699,1765491081133,-534.23,0.00014794,2]
[398288700,1765491081143,-500.0,0.00014794,2]
[398288701,1765491081153,-607.27,0.00014794,2]
[398288702,1765491081163,-500.0,0.00014794,2]
[398288703,1765491081172,-500.0,0.00014794,2]
[398288704,1765491081182,-500.0,0.00014794,2]
[398288705,1765491081191,-500.0,0.00014794,2]
[398288706,1765491081201,-577.2,0.00014794,2]
[398288707,1765491081211,-500.0,0.00014794,2]
[398288708,1765491081220,-500.0,0.00014794,2]
[398288709,1765491081229,-500.0,0.00014794,2]
[398288710,1765491081239,-500.0,0.00014794,2]
[398288711,1765491081249,-500.0,0.00014794,2]
[398288712,1765491081259,-500.0,0.00014794,2]
[398288713,1765491081269,-565.22,0.00014794,2]
[398288714,1765491081278,-500.0,0.00014794,2]
[398288715,1765491081288,-500.0,0.00014794,2]
[398288716,1765491081298,-896.09,0.00014794,2]
[398288717,1765491081308,-500.0,0.00014794,2]
[398288718,1765491081318,-500.0,0.00014794,2]
[398288719,1765491081328,-197.15205704,0.00014794,2]
[398288720,1765491081337,-500.0,0.00014794,2]
[398288721,1765491081348,-500.0,0.00014794,2]
[398288722,1765491081358,-500.0,0.00014794,2]
[398288723,1765491081367,-527.45,0.00014794,2]
[398288724,1765491081377,-500.0,0.00014794,2]
[398288725,1765491081387,-673.31,0.00014794,2]
[398288726,1765491081396,-500.0,0.00014794,2]
[398288727,1765491081407,-558.7,0.00014794,2]
[398288728,1765491081416,-500.0,0.00014794,2]
[398288729,1765491081425,-624.66169484,0.00014794,2]
[398288730,1765491081435,-500.0,0.00014794,2]
[398288731,1765491081444,-577.5,0.00014794,2]
[398288732,1765491081454,-500.0,0.00014794,2]
[398288733,1765491081464,-1296.07,0.00014794,2]
[398288734,1765491081475,-863.48,0.00014794,2]
[398288735,1765491081484,-838.73,0.00014794,2]
[398288736,1765491081494,-428.15255966,0.00014794,2]
[398288737,1765491081503,-500.0,0.00014794,2]
[398288738,1765491081513,-500.0,0.00014794,2]
[398288739,1765491081522,-500.0,0.00014794,2]
[398288740,1765491081532,-523.5,0.00014794,2]
[398288741,1765491081542,-500.0,0.00014794,2]
[398288742,1765491081553,-688.16,0.00014794,2]
[398288743,1765491081562,-493.8581851,0.00014794,2]
[398288744,1765491081572,-500.0,0.00014794,2]
[398288745,1765491081581,-500.0,0.00014794,2]
[398288746,1765491081592,-500.0,0.00014794,2]
[398288747,1765491081602,-500.0,0.00014794,2]
[398288748,1765491081612,-1755.42,0.00014794,2]
[398288749,1765491081621,-500.0,0.00014794,2]
[398288750,1765491081631,-3134.98,0.00014794,2]
[398288751,1765491081641,-818.38,0.00014794,2]
[398288752,1765491081652,-500.0,0.00014794,2]
[398288753,1765491081661,-500.0,0.00014794,2]
[398288754,1765491081671,-500.0,0.00014794,2]
[398288755,1765491081680,-500.0,0.00014794,2]
[398288756,1765491081690,-500.0,0.00014794,2]
[398288757,1765491081700,-686.06,0.00014794,2]
[398288758,1765491081709,-1030.05,0.00014794,2]
[398288759,1765491081719,-500.0,0.00014794,2]
[398288760,1765491081728,-500.0,0.00014794,2]
[398288761,1765491081738,-500.0,0.00014794,2]
[398288762,1765491081748,-500.0,0.00014794,2]
[398288763,1765491081758,-561.09,0.00014794,2]
[398288764,1765491081767,-500.0,0.00014794,2]
[398288765,1765491081777,-500.0,0.00014794,2]
[398288766,1765491081789,-1451.63,0.00014794,2]
[398288767,1765491081800,-795.02,0.00014794,2]
[398288768,1765491081810,-500.0,0.00014794,2]
[398288769,1765491081820,-622.46,0.00014794,2]
[398288770,1765491081831,-560.21584425,0.00014794,2]
[398288771,1765491081840,-1160.09,0.00014794,2]
[398288772,1765491081851,-500.0,0.00014794,2]
[398288773,1765491081861,-759.53,0.00014794,2]
[398288774,1765491081870,-500.0,0.00014794,2]
[398288775,1765491081879,-754.33,0.00014794,2]
[398288776,1765491081889,-500.0,0.00014794,2]
[398288777,1765491081899,-571.26,0.00014794,2]
[398288778,1765491081908,-500.0,0.00014794,2]
[398288779,1765491081918,-500.0,0.00014794,2]
[398288780,1765491081927,-500.0,0.00014794,2]
[398288781,1765491081937,-1048.47,0.00014794,2]
[398288782,1765491081947,-500.0,0.00014794,2]
[398288783,1765491081956,-563.96,0.00014794,2]
[398288784,1765491081966,-500.0,0.00014794,2]
[398288785,1765491081975,-500.0,0.00014794,2]
[398288786,1765491081985,-1039.07,0.00014794,2]
[398288787,1765491081995,-947.85,0.00014794,2]
[398288788,1765491082004,-512.32,0.00014794,2]
[398288789,1765491082014,-500.0,0.00014794,2]
[398288790,1765491082023,-813.08,0.00014794,2]
[398288791,1765491082033,-897.93,0.00014794,2]
[398288792,1765491082042,-500.0,0.00014794,2]
[398288793,1765491082052,-728.62,0.00014794,2]
[398288794,1765491082062,-2323.07,0.00014794,2]
[398288795,1765491082073,-500.0,0.00014794,2]
[398288796,1765491082083,-500.0,0.00014794,2]
[398288797,1765491082092,-3000.35,0.00014794,2]
[398288798,1765491082102,-500.0,0.00014794,2]
[398288799,1765491082111,-542.18,0.00014794,2]
[398288800,1765491082120,-500.0,0.00014794,2]
[398288801,1765491082131,-866.89,0.00014794,2]
[398288802,1765491082141,-1019.28,0.00014794,2]
[398288803,1765491082151,-3252.09,0.00014794,2]
[398288804,1765491082160,-500.0,0.00014794,2]
[398288805,1765491082171,-500.0,0.00014794,2]
[398288806,1765491082180,-500.0,0.00014794,2]
[398288807,1765491082190,-500.0,0.00014794,2]
[398288808,1765491082200,-1921.4,0.00014794,2]
[398288809,1765491082210,-500.0,0.00014794,2]
[398288810,1765491082220,-500.0,0.00014794,2]
[398288811,1765491082229,-559.56,0.00014794,2]
[398288812,1765491082239,-500.0,0.00014794,2]
[398288813,1765491082248,-736.04,0.00014794,2]
[398288814,1765491082259,-500.0,0.00014794,2]
[398288815,1765491082269,-628.5,0.00014794,2]
[398288816,1765491082279,-1231.35,0.00014794,2]
[398288817,1765491082288,-500.0,0.00014794,2]
[398288818,1765491082299,-611.24,0.00014794,2]
[398288819,1765491082308,-500.0,0.00014794,2]
[398288820,1765491082318,-500.0,0.00014794,2]
[398288821,1765491082329,-571.89,0.00014794,2]
[398288822,1765491082339,-500.0,0.00014794,2]
[398288823,1765491082348,-500.0,0.00014794,2]
[398288824,1765491082358,-260.37646909,0.00014794,2]
[398288825,1765491082368,-868.73,0.00014794,2]
[398288826,1765491082378,-500.0,0.00014794,2]
[398288827,1765491082388,-563.54,0.00014794,2]
[398288828,1765491082398,-500.0,0.00014794,2]
[398288829,1765491082408,-899.43,0.00014794,2]
[398288830,1765491082418,-500.0,0.00014794,2]
[398288831,1765491082427,-581.02,0.00014794,2]
[398288832,1765491082437,-663.49,0.00014794,2]
[398288833,1765491082446,-500.0,0.00014794,2]
[398288834,1765491082456,-989.01,0.00014794,2]
[398288835,1765491082466,-2160.19,0.00014794,2]
[398288836,1765491082476,-10205.12,0.00014794,2]
[398288837,1765491082486,-500.0,0.00014794,2]
[398288838,1765491082495,-911.49,0.00014794,2]
[398288839,1765491082504,-500.0,0.00014794,2]
[398288840,1765491082515,-500.0,0.00014794,2]
[398288841,1765491082524,-1655.06,0.00014794,2]
[398288842,1765491082534,-7298.25,0.00014794,2]
[398288843,1765491082544,-1376.34,0.00014794,2]
[398288844,1765491082553,-500.0,0.00014794,2]
[398288845,1765491082563,-662.02,0.00014794,2]
[398288846,1765491082572,-585.62686105,0.00014794,2]
[398288847,1765491082582,-500.0,0.00014794,2]
[398288848,1765491082592,-1087.18,0.00014794,2]
[398288849,1765491082601,-500.0,0.00014794,2]
[398288850,1765491082611,-500.0,0.00014794,2]
[398288851,1765491082622,-4759.15,0.00014794,2]
[398288852,1765491082631,-1015.81,0.00014794,2]
[398288853,1765491082641,-681.56,0.00014794,2]
[398288854,1765491082651,-500.0,0.00014794,2]
[398288855,1765491082661,-620.4,0.00014794,2]
[398288856,1765491082671,-559.66,0.00014794,2]
[398288857,1765491082680,-737.1,0.00014794,2]
[398288858,1765491082690,-500.0,0.00014794,2]
[398288859,1765491082700,-296.54,0.00014794,2]
[398288860,1765491082710,-10960.99,0.00014794,2]
[398288861,1765491082720,-500.0,0.00014794,2]
[398288862,1765491082730,-1235.62,0.00014794,2]
[398288863,1765491082740,-609.68,0.00014794,2]
[398288864,1765491082750,-1000.15,0.00014794,2]
[398288865,1765491082759,-500.0,0.00014794,2]
[398288866,1765491082769,-993.89,0.00014794,2]
[398288867,1765491082779,-901.8,0.00014794,2]
[398288868,1765491082790,-4579.29,0.00014794,2]
[398288869,1765491082800,-652.78,0.00014794,2]
[398288870,1765491082809,-1323.53,0.00014794,2]
[398288871,1765491082821,-500.0,0.00014794,2]
[398288872,1765491082831,-500.0,0.00014794,2]
[398288873,1765491082841,-500.0,0.00014794,2]
[398288874,1765491082851,-503.05,0.00014794,2]
[398288875,1765491082863,-1352.81,0.00014794,2]
[398288876,1765491082873,-500.0,0.00014794,2]
[398288877,1765491082883,-2040.63,0.00014794,2]
[398288878,1765491082892,-5393.14,0.00014794,2]
[398288879,1765491082903,-2209.61,0.00014794,2]
[398288880,1765491082913,-500.0,0.00014794,2]
[398288881,1765491082923,-500.0,0.00014794,2]
[398288882,1765491082933,-849.87,0.00014794,2]
[398288883,1765491082944,-500.0,0.00014794,2]
[398288884,1765491082955,-1257.67,0.00014794,2]
[398288885,1765491082965,-10412.18,0.00014794,2]
[398288886,1765491082975,-695.64,0.00014794,2]
[398288887,1765491082984,-8149.72,0.00014794,2]
[398288888,1765491082994,-704.78,0.00014794,2]
[398288889,1765491083005,-516.1,0.00014794,2]
[398288890,1765491083015,-622.21,0.00014794,2]
[398288891,1765491083027,-500.0,0.00014794,2]
[398288892,1765491083038,-501.41,0.00014794,2]
[398288893,1765491083050,-1309.33,0.00014794,2]
[398288894,1765491083062,-1136.35,0.00014794,2]
[398288895,1765491083074,-850.69,0.00014794,2]
[398288896,1765491083084,-6363.01,0.00014794,2]
[398288897,1765491083094,-500.0,0.00014794,2]
[398288898,1765491083104,-743.42,0.00014794,2]
[398288899,1765491083114,-500.0,0.00014794,2]
[398288900,1765491083124,-2886.13,0.00014794,2]
[398288901,1765491083134,-1968.14,0.00014794,2]
[398288902,1765491083144,-500.0,0.00014794,2]
[398288903,1765491083155,-5172.69,0.00014794,2]
[398288904,1765491083166,-500.0,0.00014794,2]
[398288905,1765491083176,-509.1,0.00014794,2]
[398288906,1765491083187,-500.0,0.00014794,2]
[398288907,1765491083197,-500.0,0.00014794,2]
[398288908,1765491083207,-500.0,0.00014794,2]
[398288909,1765491083217,-1208.74,0.00014794,2]
[398288910,1765491083228,-768.92,0.00014794,2]
[398288911,1765491083238,-1240.17,0.00014794,2]
[398288912,1765491083248,-912.89,0.00014794,2]
[398288913,1765491083259,-863.44,0.00014794,2]
[398288914,1765491083269,-500.0,0.00014794,2]
[398288915,1765491083279,-11407.6,0.00014794,2]
[398288916,1765491083289,-1196.58,0.00014794,2]
[398288917,1765491083299,-500.0,0.00014794,2]
[398288918,1765491083309,-904.49,0.00014794,2]
[398288919,1765491083320,-562.55,0.00014794,2]
[398288920,1765491083330,-2576.59,0.00014794,2]
[398288921,1765491083341,-500.0,0.00014794,2]
[398288922,1765491083350,-3480.09,0.00014794,2]
[398288923,1765491083360,-500.0,0.00014794,2]
[398288924,1765491083371,-1279.59,0.00014794,2]
[398288925,1765491083381,-500.0,0.00014794,2]
[398288926,1765491083391,-500.0,0.00014794,2]
[398288927,1765491083401,-500.0,0.00014794,2]
[398288928,1765491083411,-1023.09,0.00014794,2]
[398288929,1765491083421,-4044.64,0.00014794,2]
[398288930,1765491083431,-1327.32,0.00014794,2]
[398288931,1765491083441,-473.6,0.00014794,2]
[398288932,1765491083451,-3418.32,0.00014794,2]
[398288933,1765491083461,-500.0,0.00014794,2]
[398288934,1765491083472,-500.0,0.00014794,2]
[398288935,1765491083482,-2329.0,0.00014794,2]
[398288936,1765491083492,-500.0,0.00014794,2]
[398288937,1765491083503,-2168.76,0.00014794,2]
[398288938,1765491083513,-1724.75,0.00014794,2]
[398288939,1765491083524,-5564.14,0.00014794,2]
[398288940,1765491083534,-626.06,0.00014794,2]
[398288941,1765491083545,-3110.71941023,0.00014794,2]
[398288942,1765491085346,-415.0,0.00012484,2]
[398288943,1765491085356,-862.89,0.0001452,2]
[398288944,1765491085366,-464.05058977,0.00014794,2]
[398288945,1765491085376,-231.82464752,0.00014794,2]
[398288946,1765491085385,-1021.25,0.00014794,2]
[398288947,1765491085398,-1995.09,0.00014794,2]
[398288948,1765491085407,-500.0,0.00014794,2]
[398288949,1765491085417,-500.0,0.00014794,2]
[398288950,1765491085427,-1168.52,0.00014794,2]
[398288951,1765491085436,-2619.99306561,0.00014794,2]
[398288952,1765491085448,-799.56674035,0.00014794,2]
[398288953,1765491085459,-283.4603998,0.00014794,2]
[398288954,1765491085470,-274.34,0.00014794,2]
[398288955,1765491085482,-209.53979424,0.00014794,2]
[398288956,1765491085491,-151.16016576,0.00014794,2]
[398289018,1765492231840,-308.40902405,0.00010854,2]
[398289020,1765492231849,-300.0,0.00010857,2]
[398289022,1765492231859,-500.0,0.00010858,2]
[398289024,1765492231869,-500.0,0.00010858,2]
[398289026,1765492231878,-500.0,0.00010858,2]
[398289028,1765492231888,-500.0,0.00010858,2]
[398289030,1765492231898,-500.0,0.00010858,2]
[398289032,1765492231907,-500.0,0.00010858,2]
[398289033,1765492231917,-500.0,0.00010858,2]
[398289034,1765492231927,-500.0,0.00010858,2]
[398289035,1765492231937,-500.0,0.00010858,2]
[398289036,1765492231947,-500.0,0.00010858,2]
[398289037,1765492231956,-500.0,0.00010858,2]
[398289038,1765492231966,-500.0,0.00010858,2]
[398289039,1765492231975,-500.0,0.00010858,2]
[398289040,1765492231984,-500.0,0.00010858,2]
[398289041,1765492231994,-500.0,0.00010858,2]
[398289042,1765492232003,-500.0,0.00010873,2]
[398289043,1765492232012,-219.99610048,0.00010958,2]
[398289044,1765492232022,-500.0,0.00010958,2]
[398289045,1765492232031,-560.61524614,0.00010958,2]
[398289046,1765492232041,-454.6,0.00010958,2]
[398289047,1765492232050,-500.0,0.00010959,2]
[398289048,1765492232059,-999.0,0.00010959,2]
[398289049,1765492232069,-500.0,0.00010959,2]
[398289050,1765492232079,-500.0,0.00010959,2]
[398289051,1765492232088,-500.0,0.00010959,2]
[398289052,1765492232097,-500.0,0.00010959,2]
[398289053,1765492232106,-500.0,0.00010959,2]
[398289054,1765492232115,-500.0,0.00010959,2]
[398289055,1765492232124,-500.0,0.00010959,2]
[398289056,1765492232133,-500.0,0.00010959,2]
[398289058,1765492232143,-500.0,0.00010959,2]
[398289059,1765492232154,-842.39352047,0.00010959,2]
[398289061,1765492232165,-500.0,0.00010959,2]
[398289062,1765492232174,-842.39352047,0.00010959,2]
[398289064,1765492232183,-500.0,0.00010959,2]
[398289065,1765492232192,-842.39352047,0.00010959,2]
[398289066,1765492232202,-842.39352047,0.00010959,2]
[398289067,1765492232211,-842.39352047,0.00010959,2]
[398289068,1765492232220,-842.39352047,0.00010959,2]
[398289069,1765492232230,-842.39352047,0.00010959,2]
[398289070,1765492232240,-842.39352047,0.00010959,2]
[398289071,1765492232249,-842.39352047,0.00010959,2]
[398289072,1765492232258,-842.39352047,0.00010959,2]
[398289073,1765492232268,-842.39352047,0.00010959,2]
[398289074,1765492232277,-842.39352047,0.00010959,2]
[398289075,1765492232287,-842.39352047,0.00010959,2]
[398289076,1765492232296,-842.39352047,0.00010959,2]
[398289077,1765492232306,-842.39352047,0.00010959,2]
[398289078,1765492232315,-842.39352047,0.00010959,2]
[398289079,1765492232324,-842.39352047,0.00010959,2]
[398289080,1765492232333,-842.39352047,0.00010959,2]
[398289081,1765492232342,-842.39352047,0.00010959,2]
[398289082,1765492232351,-842.39352047,0.00010959,2]
[398289083,1765492232360,-842.39352047,0.00010959,2]
[398289084,1765492232618,-842.39352047,0.00010959,2]
[398289085,1765492232628,-842.39352047,0.00010959,2]
[398289086,1765492232637,-831.17119683,0.00010959,2]
[398289124,1765492240206,-151.0,0.00010952,2]
[398289125,1765492240218,-11.22232364,0.00010959,2]
[398289126,1765492240232,-842.39352047,0.00010959,2]
[398289127,1765492240243,-82.48272425,0.00010959,2]
[398289128,1765492240258,-650.76259487,0.00010959,2]
[398289129,1765492240273,-109.14820135,0.00010959,2]
[398289130,1765492240283,-842.39352047,0.00010959,2]
[398289131,1765492240294,-842.39352047,0.00010959,2]
[398289132,1765492240303,-842.39352047,0.00010959,2]
[398289133,1765492240313,-842.39352047,0.00010959,2]
[398289134,1765492240324,-321.29016177,0.00010959,2]
[398289135,1765492240344,-521.1033587,0.00010959,2]
[398289136,1765492240356,-111.21464647,0.00010959,2]
[398289159,1765492244249,-651.0,0.00010959,2]
[398289161,1765492244261,-80.178874,0.00010959,2]
[398289164,1765492244272,-842.39352047,0.00010959,2]
[398289166,1765492244282,-842.39352047,0.00010959,2]
[398289168,1765492244292,-842.39352047,0.00010959,2]
[398289170,1765492244302,-842.39352047,0.00010959,2]
[398289172,1765492244312,-842.39352047,0.00010959,2]
[398289173,1765492244322,-842.39352047,0.00010959,2]
[398289174,1765492244333,-842.39352047,0.00010959,2]
[398289175,1765492244343,-842.39352047,0.00010959,2]
[398289176,1765492244354,-842.39352047,0.00010959,2]
[398289177,1765492244365,-842.39352047,0.00010959,2]
[398289178,1765492244375,-842.39352047,0.00010959,2]
[398289179,1765492244384,-842.39352047,0.00010959,2]
[398289180,1765492244394,-842.39352047,0.00010959,2]
[398289181,1765492244404,-842.39352047,0.00010959,2]
[398289182,1765492244413,-842.39352047,0.00010959,2]
[398289183,1765492244422,-842.39352047,0.00010959,2]
[398289184,1765492244432,-842.39352047,0.00010959,2]
[398289185,1765492244808,-842.39352047,0.00010959,2]
[398289186,1765492244841,-842.39352047,0.00010959,2]
[398289187,1765492244860,-842.39352047,0.00010959,2]
[398289188,1765492244881,-842.39352047,0.00010959,2]
[398289189,1765492244894,-842.39352047,0.00010959,2]
[398289190,1765492244904,-842.39352047,0.00010959,2]
[398289191,1765492244913,-842.39352047,0.00010959,2]